Cogmind - Beta 16 @@@ ROGUE MODE // 2025.10.26 @ 00:20:39 Player: Mxykikker Result: Self-destructed Performance ------------- Evolutions (4) 2000 Regions Visited (7) 1400 Robots Destroyed (51) 255 Value Destroyed (2596) 2596 Prototype IDs (1) 20 Alien Tech Used (0) 0 Bonus (1856) 1856 TOTAL SCORE: 8127 Bonus ------- Follower Combat Kills 456 Entered Garrisons 400 Used RIF Installer 1000 Cogmind --------- Core Integrity 448/850 Matter 300/300 Energy 300/300 System Corruption 0% Temperature Cool (0) Movement Walking (180) Ox1 Location -6/Garrison Parts ------- > --- POWER (2) -------- Angular Momentum Engine > --- PROPULSION (4) --- Improved VSS Leg Improved Cesium-ion Thruster > --- UTILITY (6) ------ Hacking Suite Relay Coupler [NC] (31) > --- WEAPON (3) ------- Improved Remote Datajack Scythe > --- INVENTORY (5) ---- Light Angular Momentum Engine Improved System Shield Improved Remote Datajack Peak State ------------ > --- POWER ------------ Light Angular Momentum Engine Light Antimatter Reactor > --- PROPULSION ------- VTOL Module VTOL Module Improved Cesium-ion Thruster > --- UTILITY ---------- Advanced Weight Redist. System Hacking Suite Hacking Suite Relay Coupler [Swarmer] Relay Coupler [Grunt] Relay Coupler [Sentry] > --- WEAPON ----------- Remote Datajack Great Axe Spear > --- INVENTORY -------- Relay Coupler [NC] Relay Coupler [Grunt] Improved Remote Datajack [Rating: 53] Favorites ----------- Power Light Nuclear Core Engine Light Ion Engine Power Core Light Nuclear Core Reactor Light Antimatter Reactor Propulsion VTOL Module Leg Improved VSS Leg Wheel Compact Wheel Hover Unit Antigrav System Flight Unit VTOL Module Utility Advanced Weight Redist. System Device Advanced Weight Redist. System Storage Small Storage Unit Processor Improved Signal Interpreter Hackware Hacking Suite Weapon Spear Energy Gun EM Pulse Gun Ballistic Cannon Flak Cannon Launcher Grenade Launcher Special Weapon Improved Remote Datajack Impact Weapon Mace Slashing Weapon Great Axe Piercing Weapon Spear Build | -11 -10 -9 -8 -7 -7 -6 -6 ------- Run | Yrd Mat Mat Mat Fac Gar Fac Gar Slots Evolved 8 | . . 2 2 2 . 2 . Power 1 | . . . . 1 . . . Propulsion 2 | . . 2 . . . . . Utility 4 | . . . 2 . . 2 . Weapon 1 | . . . . 1 . . . Parts Attached 85 | 5 5 12 15 2 28 12 6 Power 15 | . 1 1 2 1 5 4 1 Engine 5 | . 1 1 1 . . 1 1 Core 9 | . . . 1 1 5 2 . Reactor 1 | . . . . . . 1 . Propulsion 27 | 2 . 8 3 . 10 2 2 Treads . | . . . . . . . . Leg 2 | . . . . . . . 2 Wheel 2 | 2 . . . . . . . Hover 4 | . . . . . 4 . . Flight 19 | . . 8 3 . 6 2 . Utility 19 | 1 2 2 4 . 5 4 1 Device 6 | . 1 . 4 . . 1 . Storage 2 | 1 1 . . . . . . Processor 2 | . . 2 . . . . . Hackware 9 | . . . . . 5 3 1 Protection . | . . . . . . . . Artifact . | . . . . . . . . Weapon 24 | 2 2 1 6 1 8 2 2 Energy Gun 2 | 2 . . . . . . . Energy Cannon . | . . . . . . . . Ballistic Gun . | . . . . . . . . Ballistic Cannon 2 | . . . 2 . . . . Launcher 1 | . 1 . . . . . . Special Weapon 6 | . 1 . . . 2 2 1 Impact Weapon 1 | . . 1 . . . . . Slashing Weapon 8 | . . . 2 . 5 . 1 Piercing Weapon 4 | . . . 2 1 1 . . Special Melee Weapon . | . . . . . . . . Unidentified Prototypes 1 | . . . . . . 1 . Parts Lost 28 | . . . 3 . 13 3 9 Power 8 | . . . 1 . 4 2 1 Propulsion 15 | . . . 2 . 9 1 3 Utility 4 | . . . . . . . 4 Weapon 1 | . . . . . . . 1 Highest Loss Streak 6 | . . . 3 . 6 2 4 To Critical Strikes . | . . . . . . . . Average Backups 3 | . 1 4 4 4 4 4 4 Power . | . . . . . . . 1 Propulsion . | . . . . . . . . Utility 1 | . . 1 1 2 3 1 1 Weapon 1 | . 1 2 2 1 . . . Tool/Special . | . . . . . . . . Unused Backups 10 | . 1 2 2 2 2 . 1 Power . | . . . . . . . . Propulsion 1 | . 1 . . . . . . Utility 4 | . . 1 . 1 1 . 1 Weapon 4 | . . 1 2 . 1 . . Tool/Special 1 | . . . . 1 . . . Average Slot Usage (%) 83 | . 97 97 91 99 77 81 54 Engine 4 | . 12 11 6 2 . . 3 Core 4 | . . . 1 12 10 1 . Wheel 4 | . 28 . . . . . . Hover 1 | . . . . . 3 . . Flight 17 | . . 41 30 30 16 17 9 Device 11 | . 4 11 25 23 14 8 . Storage 3 | . 22 1 . . . . . Processor 3 | . . 9 9 7 3 . . Hackware 9 | . . . . . 5 29 19 Energy Gun 4 | . 25 1 . . . . . Launcher 1 | . 2 11 1 . . . . Special Weapon 2 | . . . . . 2 6 4 Slashing Weapon 4 | . . . 6 . 5 6 5 Piercing Weapon 6 | . . . 6 22 12 6 . Peak Build Rating 53 | 5 7 17 35 43 49 53 48 Average Rating 30 | 4 6 12 28 42 36 44 33 On Entrance 23 | . 5 7 17 35 43 35 48 Avg Prop Armor Cover (%) 3 | . . . 3 . 13 . 2 Naked Turns 1 | . . . . . 1 . . Heaviest Build 29 | 9 14 9 19 26 29 23 23 Greatest Support 32 | 32 32 16 27 26 29 25 30 Greatest Overweight (x) 3 | . . . 2 . 3 1 2 Average Overweight (x) . | . . . . . . . . Largest Inventory Capacity 8 | 8 8 8 5 5 5 5 5 Average Capacity 5 | 7 8 5 5 5 5 5 5 Most Carried 8 | . 6 8 5 5 5 5 5 Average Carried 3 | . 1 3 4 4 4 4 3 Final Capacity 8 | 8 8 5 5 5 5 5 5 Final Carried 6 | . 6 5 5 5 5 5 3 Class Distribution -------------------- 29% | Mutant 26% | Scavenger-Sprinter 17% | Bothacker-Sprinter 7% | Hacker-Sprinter 7% | Hacker-Mutant 6% | Sprinter 3% | Bothacker-Mutant Dominant Class ---------------- Mutant | -10/Materials Scavenger-Sprinter | -9/Materials Scavenger-Sprinter | -8/Materials Scavenger-Sprinter | -7/Factory Scavenger-Sprinter | -7/Garrison Bothacker-Sprinter | -6/Factory Hacker-Mutant | -6/Garrison Resources | -11 -10 -9 -8 -7 -7 -6 -6 ----------- Run | Yrd Mat Mat Mat Fac Gar Fac Gar Matter Collected 1760 | 169 148 55 461 . 398 361 168 Remotely . | . . . . . . . . Salvage Created 1779 | . 188 55 430 . 527 383 196 Parts 116 | . 29 4 28 . 35 12 8 Haulers Intercepted 5 | . . . 3 . . 2 . Recyclers Shooed . | . . . . . . . . Parts Field Recycled . | . . . . . . . . Retrieved Matter . | . . . . . . . . Parts Self-Destructed . | . . . . . . . . Prevented . | . . . . . . . . Parts Restored . | . . . . . . . . Kills | -11 -10 -9 -8 -7 -7 -6 -6 ------- Run | Yrd Mat Mat Mat Fac Gar Fac Gar Combat Hostiles Destroyed 35 | . 10 1 6 . 11 4 3 Melee 21 | . . 1 2 . 11 4 3 Guns 1 | . 1 . . . . . . Cannons 4 | . . . 4 . . . . AOE 9 | . 9 . . . . . . Classes Destroyed 14 | . 5 1 4 . 3 . 1 Worker 3 | . 2 . 1 . . . . Builder 1 | . 1 . . . . . . Hauler 5 | . . . 3 . . 2 . Recycler 1 | . . . 1 . . . . Operator 2 | . . 1 1 . . . . Watcher 4 | . 2 1 1 . . . . Swarmer 10 | . 9 . . . . 1 . Cutter 6 | . . . 3 . 3 . . Grunt 8 | . 1 1 1 . . 3 2 Brawler 2 | . . . . . 2 . . Sentry 3 | . . . 2 . 1 . . Specialist 1 | . . . . . . . 1 Hunter 2 | . . . . . 2 . . Programmer 3 | . . . . . 3 . . Best Kill Streak 7 | . 7 2 5 . 6 2 1 Combat Bots Only 6 | . 5 1 4 . 6 2 1 Max Kills in Single Turn 3 | . 3 1 1 . 1 1 1 Gunslinging . | . . . . . . . . Exploded 2 | . 2 . . . . . . Melee 1 | . . 1 1 . 1 1 1 Uniques/NPCs Destroyed . | . . . . . . . . Combat | -11 -10 -9 -8 -7 -7 -6 -6 -------- Run | Yrd Mat Mat Mat Fac Gar Fac Gar Hostile Shots Fired 351 | . 36 14 34 . 136 31 100 Missed 144 | . 15 5 14 . 53 18 39 Hits 207 | . 21 9 20 . 83 13 61 Melee 13 | . . . 6 . 7 . . Projectile 194 | . 21 9 14 . 76 13 61 AOE 2 | . . . 1 . 1 . . Critical Strikes 10 | . . . 5 . 5 . . Damage Taken 3027 | . 187 121 314 . 1230 215 960 Core 1025 | . 61 45 42 . 475 41 361 Absorbed by Shields 35 | . . . . . . . 35 Regen/Repaired (Parts) 65 | . . . 24 . . 41 . Core Remaining (%) 77 | 100 75 88 92 . 32 . . Volleys Fired 68 | . 21 . 11 . 7 14 15 Largest 2 | . 2 . 2 . 1 1 1 Hottest 80 | . 80 . 74 . 7 7 7 Shots Fired 85 | . 36 . 13 . 7 14 15 Gun 27 | . 27 . . . . . . Cannon 13 | . . . 13 . . . . Launcher 7 | . 7 . . . . . . Special 38 | . 2 . . . 7 14 15 Kinetic 13 | . . . 13 . . . . Thermal 2 | . 2 . . . . . . Explosive 7 | . 7 . . . . . . Electromagnetic 27 | . 27 . . . . . . Robot Hit Streak 14 | . 1 . 14 . 11 4 4 Robot Miss Streak 8 | . 5 . 8 . . 2 1 Penetration Max . | . . . . . . . . Secondary Targets . | . . . . . . . . Shots Hit Robots 119 | . 8 3 32 . 31 19 26 Core Hits 71 | . 15 3 28 . 15 6 4 Critical Kills . | . . . . . . . . Critical Parts Destroyed . | . . . . . . . . Critical Strikes 6 | . . . 1 . 2 1 2 Sever 6 | . . . 1 . 2 1 2 Melee Attacks 206 | . . 7 29 8 107 28 27 Impact 7 | . . 7 . . . . . Slashing 99 | . . . 14 . 35 25 25 Piercing 100 | . . . 15 8 72 3 2 Sneak Attacks 10 | . . 1 5 . 1 3 . Combat Hostiles 2 | . . 1 . . 1 . . Follow-up Attacks 13 | . . . 3 . 8 . 2 Damage Inflicted 3639 | . 556 152 926 . 841 604 560 Guns 128 | . 128 . . . . . . Cannons 293 | . . . 293 . . . . Explosions 428 | . 428 . . . . . . Melee 2790 | . . 152 633 . 841 604 560 Ramming . | . . . . . . . . Kinetic 293 | . . . 293 . . . . Thermal 29 | . 29 . . . . . . Explosive 399 | . 399 . . . . . . Electromagnetic 128 | . 128 . . . . . . Impact 152 | . . 152 . . . . . Slashing 1733 | . . . 172 . 397 604 560 Piercing 905 | . . . 461 . 444 . . Highest Corruption 5 | . . . . . 5 . . Average Corruption 4 | . . . . . 4 . . Corruption Purged . | . . . . . . . . Corruption Blocked . | . . . . . . . . Effects 14 | . . . . . 14 . . Message Errors 2 | . . . . . 2 . . Matter Fused 5 | . . . . . 5 . . Heat Flow Errors 3 | . . . . . 3 . . Energy Discharges 1 | . . . . . 1 . . Parts Rejected 1 | . . . . . 1 . . Parts Fused 1 | . . . . . 1 . . Data Loss (minor) 1 | . . . . . 1 . . Overload Shots . | . . . . . . . . Overflow Damage 174 | . 13 . 19 . 77 16 49 Projectiles . | . . . . . . . . Explosions 71 | . 13 . . . 58 . . Melee 103 | . . . 19 . 19 16 49 Knockbacks 4 | . . . 4 . . . . Impact . | . . . . . . . . Kinetic 4 | . . . 4 . . . . Secondary . | . . . . . . . . Self-Inflicted Damage 175 | . 22 . . . 153 . . Shots 2 | . 1 . . . 1 . . Rammed . | . . . . . . . . Targets Rammed . | . . . . . . . . Kicked . | . . . . . . . . Crushed . | . . . . . . . . Highest Temperature 215 | . 42 6 11 . 215 . . Average Temperature 44 | . 18 6 6 . 92 . . Received Heat Transfer 660 | . 6 39 81 . 102 27 405 Siege Activations . | . . . . . . . . Martial Activations . | . . . . . . . . Shielding Activations . | . . . . . . . . Robots Disrupted . | . . . . . . . . Combat Hostiles . | . . . . . . . . Robots Corrupted . | . . . . . . . . Combat Hostiles . | . . . . . . . . Parts Fried . | . . . . . . . . Impact Corruptions . | . . . . . . . . Robots Melted . | . . . . . . . . Combat Hostiles . | . . . . . . . . Parts Melted 1 | . . . . . . 1 . Heat Transferred . | . . . . . . . . Parts Sabotaged 10 | . . . . . 10 . . Parts Stolen . | . . . . . . . . Parts Stripped . | . . . . . . . . Power Chain Reactions 1 | . 1 . . . . . . Alert | -11 -10 -9 -8 -7 -7 -6 -6 ------- Run | Yrd Mat Mat Mat Fac Gar Fac Gar Maximum Alert Level 2 | . 1 . . . 2 1 1 Low Security (%) 58 | 100 86 100 100 100 10 71 24 Level 1 33 | . 13 . . . 59 28 75 Level 2 8 | . . . . . 29 . . Level 3 . | . . . . . . . . Level 4 . | . . . . . . . . Level 5 . | . . . . . . . . High Security . | . . . . . . . . Max Security . | . . . . . . . . Peak Influence 636 | . 246 107 119 46 636 333 334 Initial 333 | . . 90 33 46 2 333 6 Average 160 | . 62 89 71 13 316 117 219 Influence Increases 2297 | . 380 79 299 8 844 183 504 Destroy 0b10 Robot/C 940 | . 200 20 120 . 260 80 260 Destroy 0b10 Robot/NC 80 | . 25 10 35 . . 10 . Destroy Leader 168 | . 44 12 38 . 40 14 20 Allied During Kill 42 | . . . . . 11 3 28 Successful Hack 79 | . 6 5 16 4 28 20 . Disable Machine 60 | . 45 15 . . . . . Anti-Garrison Action 350 | . . . . . 350 . . Destroy Structure 188 | . 30 2 . 4 125 11 16 Partial Spotted 45 | . . . 30 . . 15 . Lose Combat Pursuer 345 | . 30 15 60 . 30 30 180 Influence Decreases 1968 | . 166 214 274 108 212 810 184 Entered New Map 536 | . . 124 46 58 2 303 3 Time Decay 758 | . 166 90 198 50 . 254 . Lost Part 251 | . . . 30 . 130 30 61 Lost Ally 273 | . . . . . 80 73 120 Purge Threat 150 | . . . . . . 150 . Squads Dispatched 7 | . 1 2 1 . . 3 . Investigation 3 | . . 1 . . . 2 . Extermination 1 | . . . . . . 1 . Reinforcement 3 | . 1 1 1 . . . . Assault . | . . . . . . . . Garrison . | . . . . . . . . Intercept . | . . . . . . . . Searches Triggered . | . . . . . . . . Construction Impeded . | . . . . . . . . Haulers Reinforced . | . . . . . . . . Active Scanning Responses . | . . . . . . . . Cargo Convoy Interrupts . | . . . . . . . . Stealth | -11 -10 -9 -8 -7 -7 -6 -6 --------- Run | Yrd Mat Mat Mat Fac Gar Fac Gar Distress Signals 5 | . 4 . . . . 1 . Communications Jammed . | . . . . . . . . Distress Signals . | . . . . . . . . Times Spotted 108 | . 17 14 18 . 18 17 24 Peak Tracking Total 11 | . 4 9 8 1 4 4 11 Tactical Retreats 14 | . 1 1 2 . 1 2 7 ECM-based Alert Blocks 1 | . . . . . . 1 . Traps | -11 -10 -9 -8 -7 -7 -6 -6 ------- Run | Yrd Mat Mat Mat Fac Gar Fac Gar Traps Triggered 7 | . . 1 . . 3 1 2 Indirectly . | . . . . . . . . Trap Hack Attempts . | . . . . . . . . Triggered . | . . . . . . . . Disarmed . | . . . . . . . . Reprogrammed . | . . . . . . . . Reused . | . . . . . . . . Traps Extracted . | . . . . . . . . Installed . | . . . . . . . . Triggered . | . . . . . . . . Machines | -11 -10 -9 -8 -7 -7 -6 -6 ---------- Run | Yrd Mat Mat Mat Fac Gar Fac Gar Machines Disabled 11 | . 3 1 . . 7 . . Max in Single Turn 2 | . 1 1 . . 2 . . Garrison Relay 5 | . . . . . 5 . . Phase Generator 1 | . . . . . 1 . . Machines Repaired . | . . . . . . . . Machines Dismantled . | . . . . . . . . Machines Sabotaged . | . . . . . . . . Overloaded Fab Kills . | . . . . . . . . Hacking | -11 -10 -9 -8 -7 -7 -6 -6 --------- Run | Yrd Mat Mat Mat Fac Gar Fac Gar Machines Accessed 29 | . 4 3 9 2 4 7 . Terminals 21 | . 4 3 6 1 4 3 . Fabricators 1 | . . . . . . 1 . Repair Stations 2 | . . . 1 . . 1 . Recycling Units . | . . . . . . . . Scanalyzers 3 | . . . 2 . . 1 . Garrison Access 2 | . . . . 1 . 1 . Total Hacks 73 | . 6 5 34 2 9 17 . Successful 44 | . 4 2 20 1 3 14 . Failed 28 | . 2 3 13 1 6 3 . Catastrophic 5 | . . 1 2 . 2 . . Database Lockouts 1 | . . . 1 . . . . Manual 19 | . 3 2 14 . . . . Terminals 44 | . 6 5 17 1 9 6 . Fabricators 2 | . . . . . . 2 . Repair Stations 8 | . . . 4 . . 4 . Recycling Units . | . . . . . . . . Scanalyzers 16 | . . . 13 . . 3 . Garrison Access 3 | . . . . 1 . 2 . Terminal Hacks 14 | . 3 2 1 . 3 5 . Part Schematic 1 | . 1 . . . . . . Robot Analysis 1 | . 1 . . . . . . Open Door 1 | . . . . . 1 . . Branch Access Points 1 | . . . 1 . . . . Emergency Access Points 1 | . . . . . 1 . . Alert Level 2 | . . . . . . 2 . Unreport Threat 1 | . . . . . . 1 . Locate Traps 1 | . . . . . . 1 . Recall Investigation 1 | . . 1 . . . . . Hauler Manifests 2 | . 1 . . . . 1 . Zone Layout 1 | . . 1 . . . . . Garrison Registry 1 | . . . . . 1 . . Fabricator Hacks 2 | . . . . . . 2 . Load Schematic 1 | . . . . . . 1 . Build 1 | . . . . . . 1 . Repair Station Hacks 4 | . . . 2 . . 2 . Scan Component 2 | . . . 1 . . 1 . Repair 2 | . . . 1 . . 1 . Recycling Unit Hacks . | . . . . . . . . Scanalyzer 14 | . . . 11 . . 3 . Insert Component 6 | . . . 5 . . 1 . Analyze 4 | . . . 3 . . 1 . Retrieve Study 4 | . . . 3 . . 1 . Garrison Access Hacks 3 | . . . . 1 . 2 . Unlock Access 2 | . . . . 1 . 1 . Coupler Status 1 | . . . . . . 1 . Unauthorized Hacks 7 | . 1 . 6 . . . . Terminals 7 | . 1 . 6 . . . . Track 1 | . . . 1 . . . . Assimilate 1 | . . . 1 . . . . Botnet 5 | . 1 . 4 . . . . Fabricators . | . . . . . . . . Repair Stations . | . . . . . . . . Recycling Units . | . . . . . . . . Scanalyzers . | . . . . . . . . Garrison Access . | . . . . . . . . Data Cores Recovered . | . . . . . . . . Used . | . . . . . . . . Hacking Detections 25 | . 2 3 8 2 4 6 . Full Trace Events 5 | . . . 2 . 1 2 . Feedback Events . | . . . . . . . . Feedback Blocked . | . . . . . . . . Robot Schematics Acquired . | . . . . . . . . Robots Built . | . . . . . . . . Authchips . | . . . . . . . . Time . | . . . . . . . . Total Robot Build Rating . | . . . . . . . . Part Schematics Acquired 5 | . 1 . 3 . . 1 . Parts Built 2 | . . . . . . 2 . Authchips . | . . . . . . . . Time 106 | . . . . . . 106 . Total Part Build Rating 12 | . . . . . . 12 . Part Studies Acquired 3 | . . . 3 . . . . Parts Repaired 2 | . . . 1 . . 1 . Time 70 | . . . 32 . . 38 . Parts Recycled . | . . . . . . . . Recycled Matter . | . . . . . . . . Retrieved Matter . | . . . . . . . . Retrieved Components . | . . . . . . . . Parts Scanalyzed 4 | . . . 3 . . 1 . Part Schematics Acquired 4 | . . . 3 . . 1 . Parts Damaged . | . . . . . . . . Bothacking | -11 -10 -9 -8 -7 -7 -6 -6 ------------ Run | Yrd Mat Mat Mat Fac Gar Fac Gar Used RIF Installer 2 | . . . . . 2 . . Patrol Navigation 1 | . . . . . 1 . . Robots Hacked 11 | . . . . . 3 8 . Non-combat 1 | . . . . . . 1 . Combat 10 | . . . . . 3 7 . Robot Hacks Applied 14 | . . . . . 5 9 . parse_system 1 | . . . . . 1 . . find_fabricator 1 | . . . . . . 1 . find_garrison 1 | . . . . . . 1 . scatter_targeting 1 | . . . . . . 1 . overload_power 2 | . . . . . . 2 . streamctrl_high 2 | . . . . . 2 . . formatsys_high 6 | . . . . . 2 4 . Relay Couplers Released 19 | . . . . . 19 . . Machine Destruction 19 | . . . . . 19 . . Attached 7 | . . . . . 5 1 1 Fabnet Peak Effective % . | . . . . . . . . Robots Rewired 8 | . . . . . 2 . 6 Allies Hacked . | . . . . . . . . Hacks Repelled . | . . . . . . . . Allies | -11 -10 -9 -8 -7 -7 -6 -6 -------- Run | Yrd Mat Mat Mat Fac Gar Fac Gar Total Allies 14 | . . . . . 4 4 6 Largest Group 4 | . . . . . 4 2 4 Highest-Rated Group 164 | . . . . . 120 76 164 Highest-Rated Ally 47 | . . . . . 32 47 41 Total Orders . | . . . . . . . . Ally Attacks 56 | . . . . . 9 13 34 Total Damage 2003 | . . . . . 169 209 1625 Kills 12 | . . . . . 2 . 10 Allies Corrupted . | . . . . . . . . Allies Melted 2 | . . . . . . . 2 Intel | -11 -10 -9 -8 -7 -7 -6 -6 ------- Run | Yrd Mat Mat Mat Fac Gar Fac Gar Active Infowar (turns) 1563 | . 187 187 407 193 411 178 . Sensors 1385 | . 187 187 407 193 411 . . ECM 178 | . . . . . . 178 . Robot Analysis Total 1 | . 1 . . . . . . Derelict Logs Recovered . | . . . . . . . . Drone Launches . | . . . . . . . . Drone Recoveries . | . . . . . . . . Exploration | -11 -10 -9 -8 -7 -7 -6 -6 ------------- Run | Yrd Mat Mat Mat Fac Gar Fac Gar Turns Passed 3231 | 39 553 187 407 193 891 563 398 Spaces Moved 4593 | 33 437 436 692 466 1274 961 294 Core 25 | 1 . . . . 24 . . Treads . | . . . . . . . . Legs 168 | . . . . . . . 168 Wheels 469 | 32 437 . . . . . . Hover 385 | . . . . . 385 . . Flight 3546 | . . 436 692 466 865 961 126 Fastest Speed 26 | 50 100 26 26 26 26 29 29 Average Speed 41 | 98 100 29 28 26 38 30 73 Slowest Speed 200 | 100 100 31 195 26 200 115 180 Overloaded Moves . | . . . . . . . . Propulsion Burnouts . | . . . . . . . . Robots Hopped 8 | . . . 6 1 1 . . Potential Cave-ins . | . . . . . . . . Cave-ins Triggered . | . . . . . . . . Exploration Rate (%) 35 | 3 66 38 49 13 74 17 27 Regions Visited 7 Branch Regions . Pre-discovered Areas . | . . . . . . . . Known Exits Taken 4 | . . 1 1 1 . 1 . Unknown Exits Taken 2 | 1 1 . . . . . . Scrap Searched . | . . . . . . . . Spaces Dug 37 | . . 2 . 4 15 10 6 Terrain Destroyed 134 | . 27 2 . 4 85 10 6 Melee 37 | . . 2 . 4 15 10 6 Projectile . | . . . . . . . . AOE 97 | . 27 . . . 70 . . Terrain Rammed . | . . . . . . . . Walls Destroyed . | . . . . . . . . Machines Disabled . | . . . . . . . . Actions | -11 -10 -9 -8 -7 -7 -6 -6 --------- Run | Yrd Mat Mat Mat Fac Gar Fac Gar Total 5545 | 37 513 486 833 531 1530 1183 432 Wait 414 | . 34 8 67 52 48 135 70 Move 4570 | 32 436 435 680 463 1270 960 294 Hop 7 | . . . 5 1 1 . . Pick Up 37 | . 8 6 9 4 6 3 1 Fast Attach 67 | 5 3 3 10 1 31 10 4 Attach 24 | . . 5 4 2 4 5 4 Detach 22 | . 1 5 1 1 4 8 2 Swap 33 | . 7 5 8 . 12 1 . Drop 60 | . 3 12 13 3 21 5 3 Fire 68 | . 21 . 11 . 7 14 15 Melee 158 | . . 7 25 4 74 25 23 Ram . | . . . . . . . . Kick . | . . . . . . . . Crush . | . . . . . . . . Escape Stasis 76 | . . . . . 45 15 16 Rewire 9 | . . . . . 7 2 . Trap . | . . . . . . . . Miscellaneous . | . . . . . . . . Route ------- -11/Scrapyard -10/Materials (discovered 2 exits: *Mat x2) -9/Materials (discovered 2 exits: *Mat / [*Min]) -8/Materials -7/Factory -7/Garrison (discovered 3 exits: *Fac x3) -6/Factory -6/Garrison History --------- Turn | Location | Event 9 | -11/Scrapyard | Discovered new exit (range 16) 40 | -11/Scrapyard | Entered Materials 275 | -10/Materials | Discovered new exit (range 9) 305 | -10/Materials | Build established: Mutant 394 | -10/Materials | Discovered new exit (range 12) 593 | -10/Materials | Entered another Materials area 593 | -9/Materials | Evolved 2 slots: Propulsion x2 628 | -9/Materials | Discovered new exit (range 14) 724 | -9/Materials | Discovered new exit (range 15) 780 | -9/Materials | Identified exit to Materials 780 | -9/Materials | Entered another Materials area 780 | -8/Materials | Evolved 2 slots: Utility x2 882 | -8/Materials | Central database locked down 883 | -8/Materials | Lost 3 parts (1p2n) 928 | -8/Materials | Repaired VTOL Module+ 1185 | -8/Materials | Discovered new exit (range 8) 1187 | -8/Materials | Identified exit to Factory 1187 | -8/Materials | Entered Factory 1187 | -7/Factory | Evolved 2 slots: Power x1, Weapon x1 1380 | -7/Factory | Identified exit to Garrison 1380 | -7/Factory | Entered Garrison 1388 | -7/Garrison | Triggered checkpoint 1475 | -7/Garrison | Garrison Relay disabled 1491 | -7/Garrison | Build established: Scavenger-Sprinter 1506 | -7/Garrison | Installed Relay Interface Framework 1620 | -7/Garrison | Discovered new exit (range 13) 1752 | -7/Garrison | Lost 6 parts (2p4n) 1767 | -7/Garrison | Expanded RIF knowledge: Patrol Navigation 1819 | -7/Garrison | Heavy support dispatched to Factory 1840 | -7/Garrison | Triggered checkpoint 1896 | -7/Garrison | Core integrity fell below 50% 1992 | -7/Garrison | Garrison Relay disabled 2004 | -7/Garrison | Garrison Relay disabled 2186 | -7/Garrison | Triggered checkpoint 2194 | -7/Garrison | Garrison Relay disabled 2202 | -7/Garrison | Triggered checkpoint 2202 | -7/Garrison | Garrison Relay disabled 2204 | -7/Garrison | Triggered checkpoint 2217 | -7/Garrison | Discovered new exit (range 8) 2244 | -7/Garrison | Discovered new exit (range 13) 2244 | -7/Garrison | Discovered new exit (range 35) 2244 | -7/Garrison | Discovered new exit (range 59) 2247 | -7/Garrison | Phase Generator disabled 2271 | -7/Garrison | Entered Factory 2271 | -6/Factory | Evolved 2 slots: Utility x2 2314 | -6/Factory | Repaired Lgt. Nuclear Core 2669 | -6/Factory | Fabricated Imp. Remote Datajack (x2) 2703 | -6/Factory | Build established: Bothacker-Sprinter 2833 | -6/Factory | Identified exit to Garrison 2834 | -6/Factory | Entered Garrison 2881 | -6/Garrison | Triggered checkpoint 2921 | -6/Garrison | Lost 4 parts (1p1n2u) 3159 | -6/Garrison | Lost 4 allies 3188 | -6/Garrison | Triggered checkpoint 3232 | -6/Garrison | Self-destructed Last Messages --------------- 03162_ Acquired Scythe. 03168_ Triggered Stasis Trap. 03168_ A bubble of rippling energy engulfs the area. 03168_ Field strength at 85. 03178_ Field strength at 60. 03179_ Field strength at 40. 03180_ Field strength at 25. 03181_ Field strength at 10. 03182_ Stasis field depleted. 03189_ G-50 Soldier Adv. Heat Sink severed. 03189_ Scythe follow-up attack on G-50 Soldier. 03189_ G-50 Soldier Lgt. Angular Momentum Engine severed. 03192_ Scythe follow-up attack on G-50 Soldier. 03192_ G-50 Soldier destroyed. 03195_ Great Axe destroyed. 03195_ Acquired 22 matter. 03201_ Imp. VSS Leg destroyed. 03207_ Hacking Suite destroyed. Map ----- +----------------------------------------------------+ | ?????????????????????????????????????????????????? | | ??????????????????????????????????? ????????????? | | ??????????????????????????????????# ????????????? | | ????????????????????????????#""""## ##??????????? | | ??????????????????????????? #??????????? | | ???????????????????????? ? #??????????? | | ??????????????????????? ?? #??????????? | | ???????????????????????# ?# ## #??????????? | | ???????????????????????# ## ## ###????????? | | ???????????????????????" #????????? | | ???????????????????????" #????????? | | ???????????????????????" #????????? | | ???????????????????????" ?????????? | | ???????????????????????# ## ## ####???????? | | ???????????????????????# ## ## =##"######### | | ???????????????????????# " *!=^ # | | ???????????????????????# % % ^/ # | | ???????????????????????# " # | | ????????????????????????# ## ########+#### # | | ????????????????????????# ## #??????? #??# # | | ????????????????????????# ##"####????????#??# # | | ????????????????????????# ## #??????????????# # | | ????????????????????????# ## #??????????????# # | | ????????????????????????# g## #??????????????# # | | ????????????????????????# ## #??????????????# + | | ?????????????????########@ ## #??????????????# # | | ?????????? ;g #??????????????# # | | ?????????? ####??????????????# # | | ?????????? ######### #?????????????????# # | | ????????????????????????# #?????????????????# # | | ????????????????????????# #?????????????????# # | | ????????????????????????# #?????????????????# # | | ????????????????????????# #?????????????????# + | | ????????????????????????# #????????????????## # | | ????????????????????????# #????????????????#" # | | ????????????????????????# #????????????????## # | | ????????????????????????# #?????????????????# # | | ????????????????????????# #?????????????????# # | | ????????????????????????# #????????????????## # | | ????????????????????????? ?????????????????#" ^# | | ????????????????????????? ?????????????????## + | | ????????????????????????? ??????????????????# # | | ?????????????????????????????????????????????# # | | ?????????????????????????????????????????????# # | | ????????????????????????????????????????????## # | | ????????????????????????????????????????????#" # | | ????????????????????????????????????????????## # | | ????????????????????????????????????????????## | | ????????????????????????????????????????????#" | | ????????????????????????????????????????????## | +----------------------------------------------------+ Best States ------------- Heat Dissipation 37 Energy Generation 25 Energy Capacity 335 Matter Stores 300 Matter Capacity 300 Sight Range 16 Robot Scan Range 15 Terrain Scan Density 10 ECM Strength 1 Additional Mass Support 9 Evasion (%) 64 Offensive Hacking 20 Relay Coupler Types 3 Relay Coupler Value 88 Item Schematics ----------------- Datajack | -10/Materials | Hacked Adv. Weight Redist. System | -8/Materials | Scanalyzed Actuator Array | -8/Materials | Scanalyzed Blade Saw | -8/Materials | Scanalyzed Imp. Remote Datajack | -6/Factory | Scanalyzed Robot Schematics ------------------ None Fabricated ------------ Imp. Remote Datajack | x2 | -6/Factory Repaired ---------- VTOL Module | 4% | -8/Materials Lgt. Nuclear Core | 18% | -6/Factory Studied --------- Flak Cannon | -8/Materials | Hacked VTOL Module | -8/Materials | Hacked Surge Thruster | -8/Materials | Hacked Alien Tech Used ----------------- None Achievements -------------- Join The Dark Side Mindtrick Sprinter You Will Be Upgraded Challenges ------------ None Game ------ Seed GuidedMediumProtection Manual? 0 Play Time 01:21:08 Cumulative 82.1 hours Start 2025.10.25 @ 22:44:45 End 2025.10.26 @ 00:20:39 Sessions 1 Manual Loads 0 Difficulty Rogue Special Mode None Game No. 123 Rogue 123 Adventurer 0 Explorer 0 Win Type - Total 0 Types 0/0/0/0/0/0/0/0/0/0 Lore% 27 Gallery% 31 Achievement% 23 Wizard Run 0 Options --------- Layout 1 ASCII 0 Keyboard 0 Movement Arrows Keybinds 0 Fullscreen 1 Font 24/Smallcaps Map View 50x35 Zoom Use 0% Tactical HUD 1 Map Filters NONE Filters NONE Steam 1 RUN: f9a19521-306f-4382-8fed-2794a1d816ab